fUST/lending_fUST_20250605
["ID","MTS","AMOUNT","RATE_DAILY","PERIOD"]
[364412861,1749095433277,-440.0,0.0001741,2]
[364412862,1749095433286,-442.72484457,0.0001741,2]
[364412863,1749095433296,-440.0,0.0001741,2]
[364412864,1749095433306,-432.41560209,0.0001741,2]
[364412865,1749095433318,-440.0,0.0001741,2]
[364412866,1749095433328,-262.0986916,0.0001741,2]
[364412867,1749095433337,-494.92698807,0.0001741,2]
[364412868,1749095433347,-440.0,0.0001741,2]
[364412869,1749095433358,-436.24720046,0.0001741,2]
[364412870,1749095433369,-440.0,0.0001741,2]
[364412871,1749095433378,-430.0,0.0001741,2]
[364412872,1749095433388,-440.0,0.0001741,2]
[364412873,1749095433398,-440.0,0.0001741,2]
[364412874,1749095433408,-440.0,0.0001741,2]
[364412875,1749095433418,-440.0,0.0001741,2]
[364412876,1749095433427,-432.81513853,0.0001741,2]
[364412877,1749095433437,-440.0,0.0001741,2]
[364412878,1749095433447,-440.0,0.0001741,2]
[364412879,1749095433457,-440.0,0.00017411,2]
[364412880,1749095433466,-282.06880575,0.00017411,2]
[364412881,1749095433476,-430.0,0.00017411,2]
[364412882,1749095433486,-440.0,0.00017411,2]
[364412883,1749095433496,-440.0,0.00017412,2]
[364412884,1749095433506,-440.0,0.00017412,2]
[364412885,1749095433515,-430.0,0.00017412,2]
[364412886,1749095433525,-432.69737079,0.00017412,2]
[364412887,1749095433535,-430.0,0.00017412,2]
[364412888,1749095433559,-440.0,0.00017412,2]
[364412889,1749095433569,-518.6054909,0.00017413,2]
[364412890,1749095433578,-432.56853552,0.00017413,2]
[364412891,1749095433587,-360.0,0.00017413,2]
[364412892,1749095433597,-433.24721018,0.00017413,2]
[364412893,1749095433607,-434.05904407,0.00017413,2]
[364412894,1749095433616,-373.53370234,0.00017413,2]
[364412895,1749095433626,-430.0,0.00017413,2]
[364412896,1749095433636,-440.0,0.00017679,2]
[364412897,1749095433646,-440.0,0.00017679,2]
[364412898,1749095433656,-440.0,0.00017679,2]
[364412899,1749095433666,-440.0,0.00017679,2]
[364412900,1749095433676,-440.0,0.00017679,2]
[364412901,1749095433686,-453.94,0.00017679,2]
[364412902,1749095433696,-440.0,0.00017679,2]
[364412903,1749095433705,-440.0,0.00017679,2]
[364412904,1749095433714,-721.47,0.00017679,2]
[364412905,1749095433723,-440.0,0.00017679,2]
[364412906,1749095433733,-420.0,0.0001768,2]
[364412907,1749095433742,-440.0,0.0001768,2]
[364412908,1749095433751,-420.0,0.00017684,2]
[364412909,1749095433761,-360.02382723,0.00017684,2]
[364412910,1749095433770,-440.0,0.00017684,2]
[364412911,1749095433780,-440.0,0.00017684,2]
[364412912,1749095433790,-482.74670847,0.00017684,2]
[364412913,1749095433799,-440.0,0.00017684,2]
[364412914,1749095433809,-440.0,0.00017684,2]
[364412915,1749095433819,-440.0,0.00017684,2]
[364412916,1749095433828,-440.0,0.00017684,2]
[364412917,1749095433838,-440.0,0.00017684,2]
[364412918,1749095433847,-440.0,0.00017684,2]
[364412919,1749095433857,-440.0,0.00017684,2]
[364412920,1749095433866,-703.13,0.00017684,2]
[364412921,1749095433876,-440.0,0.00017684,2]
[364412922,1749095433885,-440.0,0.00017684,2]
[364412923,1749095433894,-440.0,0.00017684,2]
[364412924,1749095433904,-440.0,0.00017684,2]
[364412925,1749095433913,-430.84331326,0.00017684,2]
[364412926,1749095433922,-440.0,0.00017684,2]
[364412927,1749095433932,-440.0,0.00017684,2]
[364412928,1749095433941,-440.0,0.00017684,2]
[364412929,1749095433951,-379.67092726,0.00017684,2]
[364412930,1749095433960,-440.0,0.00017684,2]
[364412931,1749095433970,-440.0,0.00017684,2]
[364412932,1749095433980,-420.0,0.00017684,2]
[364412933,1749095433990,-440.0,0.00017684,2]
[364412934,1749095433999,-440.0,0.00017684,2]
[364412935,1749095434008,-440.0,0.00017684,2]
[364412936,1749095434018,-440.0,0.00017684,2]
[364412937,1749095434028,-440.0,0.00017684,2]
[364412938,1749095434038,-440.0,0.00017684,2]
[364412939,1749095434047,-440.0,0.00017684,2]
[364412940,1749095434056,-440.0,0.00017684,2]
[364412941,1749095434066,-440.0,0.00017684,2]
[364412942,1749095434075,-440.0,0.00017684,2]
[364412943,1749095434084,-440.0,0.00017684,2]
[364412944,1749095434093,-440.0,0.00017684,2]
[364412945,1749095434102,-440.0,0.00017684,2]
[364412946,1749095434111,-440.0,0.00017684,2]
[364412947,1749095434121,-440.0,0.00017684,2]
[364412948,1749095434130,-440.0,0.00017684,2]
[364412949,1749095434140,-189.08745248,0.00017684,2]
[364412950,1749095434150,-485.497221,0.00017684,2]
[364412951,1749095434159,-335.52765172,0.00017684,2]
[364412952,1749095434168,-440.0,0.00017684,2]
[364412953,1749095434178,-396.51758692,0.00017684,2]
[364412954,1749095434187,-440.0,0.00017684,2]
[364412955,1749095434196,-404.25872073,0.00017684,2]
[364412956,1749095434206,-440.0,0.00017684,2]
[364412957,1749095434216,-440.0,0.00017684,2]
[364412958,1749095434225,-440.0,0.00017685,2]
[364412959,1749095434235,-440.0,0.00017685,2]
[364412960,1749095434245,-151.43856148,0.00017685,2]
[364412961,1749095434254,-504.36641913,0.00017685,2]
[364412962,1749095434264,-452.54088076,0.00017685,2]
[364412963,1749095434274,-522.23225103,0.00017685,2]
[364412964,1749095434289,-440.0,0.00017685,2]
[364412965,1749095434299,-430.0,0.00017685,2]
[364412966,1749095434308,-440.0,0.00017685,2]
[364412967,1749095434322,-440.0,0.00017685,2]
[364412968,1749095434331,-438.27894563,0.00017685,2]
[364412969,1749095434341,-283.90510904,0.00017685,2]
[364412970,1749095434350,-430.0,0.00017685,2]
[364412971,1749095434359,-440.0,0.00017685,2]
[364412972,1749095434370,-430.0,0.00017685,2]
[364412973,1749095434380,-440.0,0.00017685,2]
[364412974,1749095434390,-440.0,0.00017685,2]
[364412975,1749095434403,-440.0,0.00017685,2]
[364412976,1749095434413,-440.0,0.00017685,2]
[364412977,1749095434423,-448.0,0.00017685,2]
[364412978,1749095434432,-440.0,0.00017685,2]
[364412979,1749095434442,-440.0,0.00017685,2]
[364412980,1749095434452,-500.0,0.00017685,2]
[364412981,1749095434461,-440.0,0.00017685,2]
[364412982,1749095434471,-440.0,0.00017685,2]
[364412983,1749095434480,-440.0,0.00017685,2]
[364412984,1749095434490,-440.0,0.00017685,2]
[364412985,1749095434499,-440.0,0.00017685,2]
[364412986,1749095434509,-440.0,0.00017685,2]
[364412987,1749095434518,-440.0,0.00017685,2]
[364412988,1749095434528,-440.0,0.00017685,2]
[364412989,1749095434538,-440.0,0.00017685,2]
[364412990,1749095434548,-440.0,0.00017685,2]
[364412991,1749095434557,-430.0,0.00017685,2]
[364412992,1749095434567,-440.0,0.00017685,2]
[364412993,1749095434576,-440.0,0.00017685,2]
[364412994,1749095434585,-436.99387,0.00017685,2]
[364412995,1749095434595,-440.0,0.00017685,2]
[364412996,1749095434604,-430.0,0.00017685,2]
[364412997,1749095434613,-440.0,0.00017685,2]
[364412998,1749095434622,-440.0,0.00017685,2]
[364412999,1749095434632,-440.0,0.00017685,2]
[364413000,1749095434642,-435.983117,0.00017685,2]
[364413001,1749095434652,-440.0,0.00017685,2]
[364413002,1749095434662,-440.0,0.00017685,2]
[364413003,1749095434671,-440.0,0.00017685,2]
[364413004,1749095434680,-440.0,0.00017685,2]
[364413005,1749095434690,-440.0,0.00017685,2]
[364413006,1749095434700,-434.8338154,0.00017685,2]
[364413007,1749095434709,-440.0,0.00017685,2]
[364413008,1749095434718,-169.16973982,0.00017685,2]
[364413009,1749095434728,-440.0,0.00017685,2]
[364413010,1749095434737,-440.0,0.00017685,2]
[364413011,1749095434747,-440.0,0.00017685,2]
[364413012,1749095434757,-440.0,0.00017685,2]
[364413013,1749095434766,-440.0,0.00017685,2]
[364413014,1749095434775,-440.0,0.00017685,2]
[364413015,1749095434785,-440.0,0.00017685,2]
[364413016,1749095434795,-440.0,0.00017685,2]
[364413017,1749095434804,-440.0,0.00017685,2]
[364413018,1749095434813,-440.0,0.00017685,2]
[364413019,1749095434822,-440.0,0.00017685,2]
[364413020,1749095434832,-449.92339111,0.00017685,2]
[364413021,1749095434841,-440.0,0.00017685,2]
[364413022,1749095434851,-440.0,0.00017685,2]
[364413023,1749095434859,-440.0,0.00017685,2]
[364413024,1749095434869,-440.0,0.00017685,2]
[364413025,1749095434878,-440.0,0.00017685,2]
[364413026,1749095434887,-497.75993381,0.00017685,2]
[364413027,1749095434896,-440.0,0.00017685,2]
[364413028,1749095434905,-440.0,0.00017685,2]
[364413029,1749095434914,-440.0,0.00017685,2]
[364413030,1749095434924,-440.0,0.00017685,2]
[364413031,1749095434933,-307.9204564,0.00017685,2]
[364413032,1749095434942,-819.4,0.00017685,2]
[364413033,1749095434951,-440.0,0.00017686,2]
[364413034,1749095434961,-160.0,0.00017953,2]
[364413035,1749095434970,-440.0,0.00017953,2]
[364413036,1749095434980,-440.0,0.00017953,2]
[364413037,1749095434989,-440.0,0.00017953,2]
[364413038,1749095434998,-440.0,0.00017953,2]
[364413039,1749095435007,-502.83896586,0.00017953,2]
[364413040,1749095435020,-453.94,0.00017953,2]
[364413041,1749095435032,-440.0,0.00017953,2]
[364413042,1749095435043,-338.2567276,0.00017953,2]
[364413043,1749095435054,-721.47,0.00017953,2]
[364413044,1749095435064,-440.0,0.00017953,2]
[364413045,1749095435074,-440.0,0.00017958,2]
[364413046,1749095435085,-184.40415745,0.00017958,2]
[364413047,1749095435095,-440.0,0.00017958,2]
[364413048,1749095435106,-410.0,0.00017958,2]
[364413049,1749095435117,-703.13,0.00017958,2]
[364413050,1749095435126,-440.0,0.00017958,2]
[364413051,1749095435136,-440.0,0.00017958,2]
[364413052,1749095435146,-440.0,0.00017958,2]
[364413053,1749095435157,-440.0,0.00017958,2]
[364413054,1749095435167,-440.0,0.00017958,2]
[364413055,1749095435177,-440.0,0.00017958,2]
[364413056,1749095435189,-337.40017513,0.00017958,2]
[364413057,1749095435199,-440.0,0.00017958,2]
[364413058,1749095435208,-440.0,0.00017958,2]
[364413059,1749095435218,-440.0,0.00017958,2]
[364413060,1749095435228,-440.0,0.00017958,2]
[364413061,1749095435238,-440.0,0.00017958,2]
[364413062,1749095435248,-440.0,0.00017958,2]
[364413063,1749095435258,-440.0,0.00017958,2]
[364413064,1749095435268,-430.45499987,0.00017958,2]
[364413065,1749095435277,-451.34292989,0.00017958,2]
[364413066,1749095435287,-440.0,0.00017958,2]
[364413067,1749095435297,-440.0,0.00017958,2]
[364413068,1749095435306,-440.0,0.00017958,2]
[364413069,1749095435318,-440.0,0.00017958,2]
[364413070,1749095435327,-440.0,0.00017958,2]
[364413071,1749095435337,-500.25439007,0.00017958,2]
[364413072,1749095435346,-440.0,0.00017958,2]
[364413073,1749095435355,-440.0,0.00017958,2]
[364413074,1749095435366,-455.59789162,0.00017958,2]
[364413075,1749095435376,-460.02,0.00017958,2]
[364413076,1749095435385,-440.0,0.00017958,2]
[364413077,1749095435397,-440.0,0.00017959,2]
[364413078,1749095435507,-440.0,0.00017959,2]
[364413079,1749095435518,-440.0,0.00017959,2]
[364413080,1749095435528,-420.0,0.00017959,2]
[364413081,1749095435538,-506.63457666,0.00017959,2]
[364413082,1749095435547,-420.0,0.00017959,2]
[364413083,1749095435556,-434.57269517,0.00017959,2]
[364413084,1749095435577,-440.0,0.00017959,2]
[364413085,1749095435588,-440.0,0.00017959,2]
[364413086,1749095435599,-420.0,0.00017959,2]
[364413087,1749095435610,-440.0,0.00017959,2]
[364413088,1749095435621,-440.0,0.00017959,2]
[364413089,1749095435631,-420.0,0.00017959,2]
[364413090,1749095435642,-420.0,0.00017959,2]
[364413091,1749095435653,-420.0,0.00017959,2]
[364413092,1749095435663,-440.0,0.00017959,2]
[364413093,1749095435674,-429.25404557,0.00017959,2]
[364413094,1749095435684,-440.0,0.00017959,2]
[364413095,1749095435695,-440.0,0.00017959,2]
[364413096,1749095435705,-440.0,0.00017959,2]
[364413097,1749095435716,-440.0,0.00017959,2]
[364413098,1749095435727,-440.0,0.00017959,2]
[364413099,1749095435737,-431.69350052,0.00017959,2]
[364413100,1749095435748,-426.67791407,0.00017959,2]
[364413101,1749095435758,-440.0,0.00017959,2]
[364413102,1749095435768,-440.0,0.00017959,2]
[364413103,1749095435778,-426.73683971,0.00017959,2]
[364413104,1749095435789,-420.0,0.00017959,2]
[364413105,1749095435799,-440.0,0.00017959,2]
[364413106,1749095435809,-440.0,0.00017959,2]
[364413107,1749095435820,-440.0,0.00017959,2]
[364413108,1749095435831,-440.0,0.00017959,2]
[364413109,1749095435841,-420.0,0.00017959,2]
[364413110,1749095435851,-440.0,0.00017959,2]
[364413111,1749095435862,-440.0,0.00017959,2]
[364413112,1749095435871,-440.0,0.00017959,2]
[364413113,1749095435881,-440.0,0.00017959,2]
[364413114,1749095435892,-440.0,0.00017959,2]
[364413115,1749095435903,-440.0,0.00017959,2]
[364413116,1749095435914,-440.0,0.00017959,2]
[364413117,1749095435924,-440.0,0.00017959,2]
[364413118,1749095435935,-532.2617709,0.00017959,2]
[364413119,1749095435947,-440.0,0.00017959,2]
[364413120,1749095435958,-440.0,0.00017959,2]
[364413121,1749095435969,-440.0,0.00017959,2]
[364413122,1749095435981,-440.0,0.00017959,2]
[364413123,1749095435992,-438.21302618,0.00017959,2]
[364413124,1749095436002,-819.4,0.00017959,2]
[364413125,1749095436011,-500.0,0.0001804,2]
[364413126,1749095436021,-526.54056509,0.00018057,2]
[364413127,1749095436031,-511.35442707,0.00018057,2]
[364413128,1749095436040,-504.40342295,0.00018057,2]
[364413129,1749095436049,-500.0,0.00018057,2]
[364413130,1749095436060,-263.59893537,0.00018057,2]
[364413131,1749095436071,-503.25050875,0.00018138,2]
[364413132,1749095436083,-5000.0,0.00018198,2]
[364413133,1749095436093,-440.0,0.00018227,2]
[364413134,1749095436103,-440.0,0.00018227,2]
[364413135,1749095436112,-440.0,0.00018227,2]
[364413136,1749095436123,-440.0,0.00018227,2]
[364413137,1749095436135,-440.0,0.00018227,2]
[364413138,1749095436147,-440.0,0.00018227,2]
[364413139,1749095436162,-464.3297887,0.00018227,2]
[364413140,1749095436172,-440.0,0.00018227,2]
[364413141,1749095436182,-440.0,0.00018227,2]
[364413142,1749095436192,-400.0,0.00018227,2]
[364413143,1749095436202,-440.0,0.00018227,2]
[364413144,1749095436212,-400.0,0.00018227,2]
[364413145,1749095436222,-400.0,0.00018227,2]
[364413146,1749095436233,-440.0,0.00018227,2]
[364413147,1749095436243,-440.0,0.00018227,2]
[364413148,1749095436254,-750.79,0.00018227,2]
[364413149,1749095436263,-400.0,0.00018227,2]
[364413150,1749095436273,-453.94,0.00018227,2]
[364413151,1749095436283,-440.0,0.00018227,2]
[364413152,1749095436292,-400.0,0.00018227,2]
[364413153,1749095436302,-721.47,0.00018227,2]
[364413154,1749095436312,-440.0,0.00018227,2]
[364413155,1749095436326,-440.0,0.00018227,2]
[364413156,1749095436336,-440.0,0.00018232,2]
[364413157,1749095436347,-440.0,0.00018232,2]
[364413158,1749095436359,-703.13,0.00018232,2]
[364413159,1749095436369,-440.0,0.00018232,2]
[364413160,1749095436379,-400.0,0.00018232,2]
[364413161,1749095436389,-400.0,0.00018232,2]
[364413162,1749095436401,-400.0,0.00018232,2]
[364413163,1749095436412,-440.0,0.00018232,2]
[364413164,1749095436422,-440.0,0.00018232,2]
[364413165,1749095436433,-404.72942855,0.00018232,2]
[364413166,1749095436443,-440.0,0.00018232,2]
[364413167,1749095436453,-400.0,0.00018232,2]
[364413168,1749095436462,-440.0,0.00018232,2]
[364413169,1749095436472,-440.0,0.00018232,2]
[364413170,1749095436482,-541.7137871,0.00018232,2]
[364413171,1749095436492,-491.96362287,0.00018232,2]
[364413172,1749095436502,-440.0,0.00018232,2]
[364413173,1749095436512,-440.0,0.00018233,2]
[364413174,1749095436521,-440.0,0.00018233,2]
[364413175,1749095436531,-440.0,0.00018233,2]
[364413176,1749095436541,-440.0,0.00018233,2]
[364413177,1749095436551,-440.0,0.00018233,2]
[364413178,1749095436560,-440.0,0.00018233,2]
[364413179,1749095436569,-440.0,0.00018233,2]
[364413180,1749095436579,-440.0,0.00018233,2]
[364413181,1749095436588,-440.0,0.00018233,2]
[364413182,1749095436597,-410.0,0.00018233,2]
[364413183,1749095436606,-185.5395508,0.00018233,2]
[364413184,1749095436616,-440.0,0.00018233,2]
[364413185,1749095436625,-410.0,0.00018233,2]
[364413186,1749095436634,-410.0,0.00018233,2]
[364413187,1749095436643,-440.0,0.00018233,2]
[364413188,1749095436655,-440.0,0.00018233,2]
[364413189,1749095436665,-440.0,0.00018233,2]
[364413190,1749095436675,-410.0,0.00018233,2]
[364413191,1749095436684,-819.4,0.00018233,2]
[364413192,1749095436693,-474.73830295,0.00018284,2]
[364413193,1749095436703,-500.0,0.00018493,2]
[364413194,1749095436713,-440.0,0.00018501,2]
[364413195,1749095436723,-440.0,0.00018501,2]
[364413196,1749095436733,-440.0,0.00018501,2]
[364413197,1749095436743,-440.0,0.00018501,2]
[364413198,1749095436752,-440.0,0.00018501,2]
[364413199,1749095436763,-440.0,0.00018501,2]
[364413200,1749095436774,-440.0,0.00018501,2]
[364413201,1749095436785,-440.0,0.00018501,2]
[364413202,1749095436795,-440.0,0.00018501,2]
[364413203,1749095436804,-440.0,0.00018501,2]
[364413204,1749095436813,-420.0,0.00018501,2]
[364413205,1749095436822,-750.79,0.00018501,2]
[364413206,1749095436832,-453.94,0.00018501,2]
[364413207,1749095436842,-440.0,0.00018501,2]
[364413208,1749095436852,-721.47,0.00018501,2]
[364413209,1749095436862,-440.0,0.00018501,2]
[364413210,1749095436873,-440.0,0.00018506,2]
[364413211,1749095436885,-440.0,0.00018506,2]
[364413212,1749095436895,-703.13,0.00018506,2]
[364413213,1749095436906,-440.0,0.00018506,2]
[364413214,1749095436915,-440.0,0.00018506,2]
[364413215,1749095436924,-440.0,0.00018506,2]
[364413216,1749095436933,-440.0,0.00018506,2]
[364413217,1749095436943,-440.0,0.00018506,2]
[364413218,1749095436952,-402.71695512,0.00018507,2]
[364413219,1749095436961,-440.0,0.00018507,2]
[364413220,1749095436971,-440.0,0.00018507,2]
[364413221,1749095436980,-400.0,0.00018507,2]
[364413222,1749095436990,-440.0,0.00018507,2]
[364413223,1749095436999,-497.14944358,0.00018507,2]
[364413224,1749095437009,-440.0,0.00018507,2]
[364413225,1749095437020,-303.23133789,0.00018507,2]
[364413226,1749095437030,-440.0,0.00018507,2]
[364413227,1749095437041,-440.0,0.00018507,2]
[364413228,1749095437051,-440.0,0.00018507,2]
[364413229,1749095437062,-440.0,0.00018507,2]
[364413230,1749095437071,-414.43014427,0.00018507,2]
[364413231,1749095437080,-819.4,0.00018507,2]
[364413232,1749095437089,-440.0,0.00018775,2]
[364413233,1749095437099,-440.0,0.00018775,2]
[364413234,1749095437108,-440.0,0.00018775,2]
[364413235,1749095437117,-440.0,0.00018775,2]
[364413236,1749095437126,-440.0,0.00018775,2]
[364413237,1749095437135,-440.0,0.00018775,2]
[364413238,1749095437144,-440.0,0.00018775,2]
[364413239,1749095437153,-440.0,0.00018775,2]
[364413240,1749095437162,-750.79,0.00018775,2]
[364413241,1749095437173,-453.94,0.00018775,2]
[364413242,1749095437182,-440.0,0.00018775,2]
[364413243,1749095437191,-721.47,0.00018775,2]
[364413244,1749095437201,-440.0,0.00018775,2]
[364413245,1749095437210,-440.0,0.0001878,2]
[364413246,1749095437219,-293.49885412,0.0001878,2]
[364413247,1749095437228,-703.13,0.0001878,2]
[364413248,1749095437238,-440.0,0.0001878,2]
[364413249,1749095437249,-440.0,0.0001878,2]
[364413250,1749095437258,-440.0,0.0001878,2]
[364413251,1749095437268,-440.0,0.0001878,2]
[364413252,1749095437278,-440.0,0.00018781,2]
[364413253,1749095437287,-440.0,0.00018781,2]
[364413254,1749095437297,-440.0,0.00018781,2]
[364413255,1749095437306,-440.0,0.00018781,2]
[364413256,1749095437316,-440.0,0.00018781,2]
[364413257,1749095437329,-440.0,0.00018781,2]
[364413258,1749095437339,-440.0,0.00018781,2]
[364413259,1749095437348,-819.4,0.00018781,2]
[364413260,1749095437359,-1630.36650923,0.000189,2]
[364413261,1749095437369,-229.48950782,0.00018948,2]
[364413262,1749095437378,-160.0,0.00018948,2]
[364413263,1749095437387,-423.7637613,0.00018948,2]
[364413264,1749095437398,-160.0,0.00018948,2]
[364413265,1749095437408,-212.94059491,0.00018948,2]
[364413266,1749095437418,-420.0,0.00019001,2]
[364413267,1749095437427,-161.0387911,0.00019041,2]
[364413268,1749095437437,-440.0,0.00019049,2]
[364413270,1749095437447,-440.0,0.00019049,2]
[364413272,1749095437456,-440.0,0.00019049,2]
[364413274,1749095437466,-440.0,0.00019049,2]
[364413276,1749095437475,-440.0,0.00019049,2]
[364413278,1749095437485,-365.98323056,0.00019049,2]
[364413280,1749095437495,-440.0,0.00019049,2]
[364413282,1749095437505,-750.79,0.00019049,2]
[364413284,1749095437514,-453.94,0.00019049,2]
[364413286,1749095437524,-440.0,0.00019049,2]
[364413288,1749095437534,-721.47,0.00019049,2]
[364413290,1749095437543,-408.88069575,0.00019049,2]
[364413292,1749095437552,-440.0,0.00019054,2]
[364413298,1749095437596,-703.13,0.00019054,2]
[364413300,1749095437606,-203.70071578,0.00019054,2]
[364413302,1749095437615,-440.0,0.00019054,2]
[364413304,1749095437624,-440.0,0.00019054,2]
[364413306,1749095437633,-440.0,0.00019055,2]
[364413308,1749095437642,-440.0,0.00019055,2]
[364413309,1749095437651,-440.0,0.00019055,2]
[364413310,1749095437660,-440.0,0.00019055,2]
[364413311,1749095437670,-440.0,0.00019055,2]
[364413312,1749095437679,-819.4,0.00019055,2]
[364413313,1749095437689,-828.8566609,0.00019078,2]
[364413314,1749095437698,-1630.36650911,0.00019107,2]
[364413315,1749095437707,-440.0,0.00019178,2]
[364413316,1749095437715,-440.0,0.00019178,2]
[364413317,1749095437724,-440.0,0.00019178,2]
[364413318,1749095437733,-440.0,0.00019178,2]
[364413319,1749095437744,-440.0,0.00019178,2]
[364413320,1749095437754,-440.0,0.00019178,2]
[364413321,1749095437763,-440.0,0.00019178,2]
[364413322,1749095437772,-400.0,0.00019178,2]
[364413323,1749095437781,-400.0,0.00019178,2]
[364413324,1749095437791,-400.0,0.00019178,2]
[364413325,1749095437800,-400.0,0.00019178,2]
[364413326,1749095437809,-400.0,0.00019178,2]
[364413327,1749095437818,-400.0,0.00019178,2]
[364413328,1749095437828,-400.0,0.00019178,2]
[364413329,1749095437837,-246.326876,0.00019178,2]
[364413330,1749095437846,-474.73830295,0.00019258,2]
[364413331,1749095437856,-1630.36650911,0.00019314,2]
[364413332,1749095437866,-440.0,0.00019323,2]
[364413333,1749095437875,-440.0,0.00019323,2]
[364413334,1749095437885,-440.0,0.00019323,2]
[364413335,1749095437895,-440.0,0.00019323,2]
[364413336,1749095437906,-440.0,0.00019323,2]
[364413337,1749095437916,-440.0,0.00019323,2]
[364413338,1749095437925,-750.79,0.00019323,2]
[364413339,1749095437935,-453.94,0.00019323,2]
[364413340,1749095437944,-440.0,0.00019323,2]
[364413341,1749095437954,-721.47,0.00019323,2]
[364413342,1749095437963,-440.0,0.00019328,2]
[364413343,1749095437972,-400.0,0.00019328,2]
[364413344,1749095437982,-703.13,0.00019328,2]
[364413345,1749095437991,-440.0,0.00019328,2]
[364413346,1749095438003,-440.0,0.00019328,2]
[364413347,1749095438013,-440.0,0.00019329,2]
[364413348,1749095438022,-320.23016363,0.00019329,2]
[364413349,1749095438031,-819.4,0.00019329,2]
[364413350,1749095438041,-440.0,0.0001933,2]
[364413352,1749095438052,-1630.36650911,0.00019521,2]
[364413353,1749095438063,-470.5,0.00019597,2]
[364413355,1749095438072,-440.0,0.00019597,2]
[364413356,1749095438081,-440.0,0.00019597,2]
[364413357,1749095438091,-440.0,0.00019597,2]
[364413358,1749095438100,-440.0,0.00019597,2]
[364413359,1749095438110,-440.0,0.00019597,2]
[364413360,1749095438119,-750.79,0.00019597,2]
[364413361,1749095438129,-453.94,0.00019597,2]
[364413362,1749095438138,-440.0,0.00019597,2]
[364413363,1749095438153,-721.47,0.00019597,2]
[364413364,1749095438163,-440.0,0.00019602,2]
[364413365,1749095438172,-400.0,0.00019602,2]
[364413366,1749095438181,-703.13,0.00019602,2]
[364413367,1749095438191,-440.0,0.00019602,2]
[364413368,1749095438200,-440.0,0.00019602,2]
[364413369,1749095438210,-440.0,0.00019603,2]
[364413370,1749095438219,-819.4,0.00019603,2]
[364413371,1749095438229,-440.0,0.00019604,2]
[364413372,1749095438239,-1630.36650911,0.00019728,2]
[364413374,1749095438251,-180.19461018,0.00019746,2]
[364413376,1749095438261,-782.068,0.00019855,2]
[364413377,1749095438271,-178.904,0.00019855,2]
[364413378,1749095438279,-228.02,0.00019871,2]
[364413379,1749095438289,-440.0,0.00019871,2]
[364413380,1749095438298,-440.0,0.00019871,2]
[364413381,1749095438309,-440.0,0.00019871,2]
[364413382,1749095438324,-440.0,0.00019871,2]
[364413383,1749095438335,-750.79,0.00019871,2]
[364413384,1749095438344,-453.94,0.00019871,2]
[364413385,1749095438354,-440.0,0.00019871,2]
[364413386,1749095438365,-721.47,0.00019871,2]